bitfinex-derivatives/quotes_ETHF0:USTF0_20250912
["timestamp","ask_amount","ask_price","bid_price","bid_amount"]
[1757635397385,0.2936,4458.4,4457.7,0.3044]
[1757635398790,3.2078,4458.7,4457.7,0.3044]
[1757635398994,3.4418,4458.7,4457.7,0.3044]
[1757635399194,0.2936,4458.6,4457.7,0.3044]
[1757635400994,3.2078,4458.7,4458.5,0.525]
[1757635401190,3.2078,4458.7,4458.6,0.7116]
[1757635401392,3.4171,4458.7,4458.6,0.7116]
[1757635401595,3.9257,4458.7,4458.6,0.7116]
[1757635402692,3.6321,4458.7,4458.1,3.2078]
[1757635403290,0.7179,4458.6,4458.5,0.515]
[1757635404191,0.7179,4458.6,4458.1,0.3044]
[1757635404390,0.2093,4458.1,4458.0,0.525]
[1757635404586,3.2078,4458.7,4458.1,0.3044]
[1757635404791,3.4171,4458.7,4458.6,0.7116]
[1757635404992,3.9257,4458.7,4458.0,0.1178]
[1757635405192,3.9257,4458.7,4458.1,0.3044]
[1757635406503,0.4243,4458.2,4458.1,0.515]
[1757635406802,0.7179,4458.2,4458.1,0.515]
[1757635407200,3.9257,4458.2,4457.6,0.3044]
[1757635407802,3.9257,4458.2,4458.1,0.2106]
[1757635408005,3.9257,4458.2,4458.1,0.5221]
[1757635408201,0.2019,4457.7,4457.6,0.7384]
[1757635408498,0.417,4457.7,4457.6,0.7384]
[1757635408700,0.7103,4457.7,4457.6,0.7384]
[1757635409798,0.417,4457.7,4457.6,0.7384]
[1757635410602,0.7103,4457.7,4457.6,0.5237]
[1757635410800,0.417,4457.5,4457.4,0.3115]
[1757635411000,0.7103,4457.5,4457.4,0.5237]
[1757635411303,0.7103,4457.5,4457.4,0.7384]
[1757635411502,0.9346,4457.5,4457.4,0.7384]
[1757635413708,0.6413,4457.5,4457.4,0.7384]
[1757635414104,0.2019,4456.6,4456.5,0.8562]
[1757635414996,3.5011,4457.1,4456.5,0.5447]
[1757635415197,3.56895652,4457.1,4457.0,0.3388]
[1757635415394,3.56895652,4457.1,4457.0,0.6503]
[1757635415998,3.56895652,4457.1,4456.5,0.1178]
[1757635416194,3.56895652,4457.1,4456.5,0.4293]
[1757635417106,0.1651,4457.0,4456.5,0.4293]
[1757635417308,0.417,4456.6,4456.5,0.6415]
[1757635417604,0.417,4456.6,4456.5,0.8562]
[1757635417804,0.5821,4456.6,4456.5,0.3115]
[1757635418107,0.417,4456.6,4456.0,0.1178]
[1757635418308,0.417,4456.6,4456.1,0.3115]
[1757635418605,0.417,4456.6,4456.0,0.1178]
[1757635418999,3.2078,4456.4,4456.1,0.4269]
[1757635419199,3.6437,4456.9,4456.8,0.7384]
[1757635419396,3.8588,4456.9,4456.8,0.7384]
[1757635419598,3.6248,4456.9,4456.8,0.7384]
[1757635420709,3.2078,4456.9,4456.8,0.7384]
[1757635420907,0.234,4457.1,4457.0,0.865]
[1757635421308,0.234,4457.1,4457.0,0.6503]
[1757635421309,0.651,4457.1,4457.0,0.6503]
[1757635421508,0.417,4456.7,4456.6,0.2122]
[1757635421907,0.5821,4456.6,4456.0,0.1178]
[1757635422109,0.5821,4456.6,4456.1,0.3115]
[1757635422412,0.417,4456.6,4456.0,0.1178]
[1757635422916,0.417,4456.6,4456.1,0.3115]
[1757635423213,0.417,4456.2,4456.1,0.3115]
[1757635423509,0.417,4456.2,4456.1,0.5237]
[1757635424116,0.417,4456.2,4456.1,0.7384]
[1757635424608,0.2019,4456.2,4456.1,0.7384]
[1757635424809,0.1651,4456.1,4455.4,0.234]
[1757635425019,0.1651,4456.1,4455.6,0.5237]
[1757635425020,0.417,4455.7,4455.6,0.5237]
[1757635425210,0.417,4455.7,4455.6,0.7384]
[1757635425407,0.2019,4455.7,4455.6,0.7384]
[1757635426113,0.417,4455.7,4455.6,0.7384]
[1757635427213,0.5821,4455.7,4455.6,0.3115]
[1757635428120,0.80653,4455.7,4455.1,0.3115]
[1757635428819,0.2019,4455.2,4455.1,0.7384]
[1757635429822,0.2244,4455.6,4455.5,0.865]
[1757635430022,0.4574,4455.6,4455.5,0.865]
[1757635430223,0.2244,4455.6,4455.5,0.865]
[1757635430721,0.4263,4455.6,4455.5,0.6503]
[1757635430923,0.6414,4455.6,4455.5,0.6503]
[1757635432129,0.4263,4455.6,4455.5,0.865]
[1757635432624,0.4574,4455.6,4455.5,0.865]
[1757635432831,0.2244,4455.6,4455.5,0.865]
[1757635435637,0.4263,4455.6,4455.5,0.865]
[1757635436032,0.2244,4455.6,4455.5,0.865]
[1757635436636,3.2078,4455.9,4455.5,0.5535]
[1757635436835,3.6248,4456.7,4456.6,0.2122]
[1757635437137,3.6248,4456.7,4456.1,0.3115]
[1757635437138,4.1511,4456.7,4456.1,0.3115]
[1757635437435,3.9181,4456.7,4456.1,0.3115]
[1757635437628,0.7135,4456.2,4456.1,0.5039]
[1757635437937,3.9213,4456.2,4455.6,0.3022]
[1757635438232,4.1543,4456.2,4455.6,0.3022]
[1757635438935,0.7135,4455.7,4455.6,0.3022]
[1757635439126,0.9465,4455.7,4455.2,3.2078]
[1757635439326,0.3076,4455.6,4455.5,0.2017]
[1757635439536,0.7135,4455.6,4455.5,0.5039]
[1757635439936,0.7135,4455.6,4455.5,0.8417]
[1757635440341,0.2073,4455.6,4455.5,0.8417]
[1757635440535,3.6137,4456.2,4456.1,0.7125]
[1757635440830,3.8467,4456.2,4456.1,0.7125]
[1757635441033,3.2078,4456.2,4456.1,0.7125]
[1757635441229,3.9213,4456.2,4456.1,0.5039]
[1757635441733,3.6137,4456.2,4456.1,0.7125]
[1757635441935,3.2078,4456.2,4456.1,0.7125]
[1757635442535,3.4151,4456.2,4456.1,0.7125]
[1757635443141,3.6137,4456.2,4456.1,0.7125]
[1757635443638,3.9213,4456.2,4456.1,0.5039]
[1757635443837,3.9213,4456.2,4455.6,0.3022]
[1757635444036,0.7135,4456.2,4456.1,0.2017]
[1757635444335,0.7135,4456.2,4456.1,0.5039]
[1757635445038,0.7135,4456.2,4455.6,0.3022]
[1757635445540,0.7135,4456.2,4456.1,0.5039]
[1757635446738,0.4059,4456.2,4456.1,0.7125]
[1757635447444,0.233,4456.3,4456.2,0.7125]
[1757635447939,0.3076,4456.9,4456.6,0.4103]
[1757635448141,0.3076,4456.9,4456.8,3.2078]
[1757635448337,0.3076,4456.9,4456.8,3.4408]
[1757635448542,0.09723662,4456.9,4456.8,7.66517]
[1757635448942,0.09723662,4456.9,4456.8,3.66517]
[1757635449139,0.30453662,4456.9,4456.8,3.4408]
[1757635449339,0.30453662,4456.9,4456.8,5.0495166]
[1757635449739,0.09723662,4456.9,4456.8,5.0495166]
[1757635450139,0.09723662,4456.9,4456.8,3.4408]
[1757635450831,0.50313662,4456.9,4456.8,3.2078]
[1757635453044,0.09723662,4456.9,4456.8,7.2078]
[1757635456532,0.1209,4457.0,4456.8,7.43217]
[1757635456733,0.1209,4457.0,4456.8,3.2078]
[1757635457147,0.1209,4457.0,4456.9,40.8]
[1757635457835,0.3076,4457.4,4456.9,41.20369]
[1757635458037,0.1209,4457.5,4457.3,3.2078]
[1757635458331,0.1209,4457.5,4457.4,0.233]
[1757635458737,0.1209,4457.5,4457.4,1.83803332]
[1757635459343,0.1209,4457.5,4457.4,4.233]
[1757635459544,0.4285,4457.5,4457.4,4.233]
[1757635460645,0.4285,4457.5,4457.4,5.83803332]
[1757635461437,0.4285,4457.5,4457.4,4.233]
[1757635461634,0.4285,4457.5,4457.4,45.033]
[1757635462249,0.4285,4457.5,4457.4,41.033]
[1757635465749,0.4285,4457.5,4457.4,0.233]
[1757635467948,0.4285,4457.5,4457.3,44.0078]
[1757635468154,0.3205,4457.4,4457.3,44.0078]
[1757635468353,0.3205,4457.4,4457.3,44.2398]
[1757635468956,0.1209,4458.0,4457.4,0.40366]
[1757635469162,0.1209,4458.0,4457.9,3.2078]
[1757635469352,0.1209,4458.0,4457.9,3.4398]
[1757635470658,0.1209,4459.0,4457.9,3.4398]
[1757635470851,0.1209,4459.0,4458.4,3.2078]
[1757635471056,0.4414,4458.5,4458.4,3.4398]
[1757635473653,0.6446,4458.5,4458.4,3.4398]
[1757635473950,0.845,4458.5,4458.4,3.4398]
[1757635474264,0.6446,4458.5,4458.4,3.4398]
[1757635474858,0.4414,4458.5,4458.4,3.4398]
[1757635476459,0.1209,4458.5,4458.4,3.4398]
[1757635477455,0.3205,4458.9,4458.5,0.40355]
[1757635477661,0.1209,4459.0,4458.7,1.60610613]
[1757635477961,0.3205,4458.9,4458.8,0.232]
[1757635478164,0.3205,4458.9,4458.8,3.4398]
[1757635478858,0.1209,4459.0,4458.8,3.84333]
[1757635479059,0.1209,4459.0,4458.8,5.44943613]
[1757635479465,0.1209,4459.0,4458.8,3.84333]
[1757635479664,0.1209,4459.0,4458.8,3.4398]
[1757635479957,0.1209,4459.0,4458.8,3.2078]
[1757635479958,0.3205,4458.9,4458.8,3.2078]
[1757635480157,0.51385705,4458.9,4458.8,3.4398]
[1757635480563,0.11025705,4458.9,4458.8,3.4398]
[1757635480764,0.31345705,4458.9,4458.8,3.4398]
[1757635484769,0.51385705,4458.9,4458.8,3.4398]
[1757635485369,0.51385705,4458.9,4458.8,3.2078]
[1757635485569,0.51385705,4458.9,4458.8,3.4398]
[1757635486765,0.11025705,4458.9,4458.8,3.4398]
[1757635487164,0.11025705,4458.9,4458.8,5.04590613]
[1757635487363,0.1209,4459.0,4458.8,3.4398]
[1757635487567,0.1209,4459.0,4458.9,1.60852189]
[1757635487568,0.4414,4459.0,4458.9,1.60852189]
[1757635487970,0.1209,4459.0,4458.9,1.60852189]
[1757635488464,0.3205,4459.4,4458.9,1.60852189]
[1757635488670,0.3205,4459.4,4459.3,3.2078]
[1757635488870,0.3205,4459.4,4459.3,3.4398]
[1757635489866,0.1288,4459.5,4459.3,3.4398]
[1757635490074,0.4493,4459.5,4459.3,5.45181189]
[1757635490267,0.2032,4459.9,4459.3,5.45181189]
[1757635490468,0.4036,4459.9,4459.8,3.2078]
[1757635490669,0.4036,4459.9,4459.8,3.4398]
[1757635490865,0.7241,4459.9,4459.8,3.4398]
[1757635491068,0.3205,4459.9,4459.8,3.4398]
[1757635491269,0.1288,4460.0,4459.9,0.40344]
[1757635491463,0.4493,4460.0,4459.9,0.40344]
[1757635491771,0.332,4460.5,4460.0,0.40342]
[1757635492074,0.332,4460.5,4460.4,3.2078]
[1757635492276,0.332,4460.5,4460.4,3.4398]
[1757635492569,0.6525,4460.5,4460.4,3.4398]
[1757635493366,0.8529,4460.5,4460.4,3.4398]
[1757635494475,0.8529,4460.5,4460.4,3.2078]
[1757635494669,4.8529,4460.5,4460.4,3.4388]
[1757635498885,0.8529,4460.5,4460.4,3.2078]
[1757635499074,0.8529,4460.5,4460.4,3.4388]
[1757635499474,4.8529,4460.5,4460.4,3.4388]
[1757635500179,4.8529,4460.5,4460.4,2.8834]
[1757635500386,4.8529,4460.5,4460.1,0.231]
[1757635500577,0.8529,4460.5,4460.0,0.231]
[1757635501769,0.3017,4460.4,4459.7,3.2078]
[1757635502083,0.7128,4459.9,4459.8,0.231]
[1757635502566,0.7128,4459.8,4459.7,3.2078]
[1757635502978,4.4111,4459.8,4458.9,3.5287]
[1757635503183,3.2078,4459.3,4458.9,0.231]
[1757635503382,3.2078,4459.3,4459.2,0.5206]
[1757635503979,3.2078,4459.8,4459.7,0.4019]
[1757635504279,3.2078,4459.8,4459.7,0.7228]
[1757635504480,3.2078,4460.3,4459.7,0.7228]
[1757635504681,3.4388,4460.3,4460.1,0.3209]
[1757635504874,3.4388,4460.3,4460.0,0.1199]
[1757635505277,3.2078,4460.3,4460.2,0.7228]
[1757635505980,3.2078,4461.4,4460.8,0.4019]
[1757635506184,3.2078,4461.4,4461.3,0.1997]
[1757635506485,3.2078,4461.4,4461.3,0.5206]
[1757635506978,3.2078,4461.9,4461.4,0.3209]
[1757635507181,0.231,4461.8,4461.5,0.3196]
[1757635507374,0.231,4461.8,4461.7,0.3209]
[1757635507571,0.231,4461.8,4461.7,0.5206]
[1757635508085,0.231,4461.8,4461.7,0.3209]
[1757635508272,4.231,4461.8,4461.5,0.1199]
[1757635509082,4.231,4461.8,4461.5,0.4408]
[1757635509384,4.231,4461.8,4461.5,0.1199]
[1757635509584,4.231,4461.8,4461.1,0.3209]
[1757635509585,4.0,4461.7,4461.1,0.3209]
[1757635509882,3.2078,4461.4,4461.1,0.3209]
[1757635510582,3.4388,4461.4,4461.1,0.3209]
[1757635510796,3.4388,4461.4,4461.3,0.7228]
[1757635511083,0.231,4461.6,4461.5,0.8427]
[1757635513478,3.2078,4461.9,4461.5,0.5218]
[1757635513679,0.231,4461.8,4461.6,0.1997]
[1757635513882,0.231,4461.8,4461.7,0.7228]
[1757635514780,0.231,4461.8,4461.7,0.3209]
[1757635515987,0.231,4461.8,4461.7,0.7228]
[1757635517394,0.231,4461.8,4461.7,0.5206]
[1757635518685,0.231,4461.8,4461.7,0.3209]
[1757635518981,0.231,4461.8,4461.0,0.1199]
[1757635518982,4.231,4461.8,4461.2,0.3209]
[1757635519179,3.2078,4461.3,4461.2,0.3209]
[1757635519378,3.4388,4461.3,4461.2,0.5206]
[1757635519579,3.4388,4461.3,4461.2,0.3209]
[1757635520787,7.4388,4461.3,4460.6,0.3209]
[1757635520982,3.2078,4460.7,4460.6,0.3209]
[1757635521282,3.4388,4460.7,4460.6,0.3209]
[1757635521482,3.4388,4460.7,4460.5,0.1199]
[1757635522289,3.4388,4460.7,4460.5,0.4408]
[1757635522585,4.0,4460.6,4460.0,0.1199]
[1757635522788,3.2078,4460.1,4459.6,0.3209]
[1757635522989,3.2078,4460.1,4458.9,3.2078]
[1757635522990,0.231,4460.0,4458.9,3.2078]
[1757635523185,3.2078,4459.6,4459.5,0.4408]
[1757635523387,3.4388,4459.6,4459.5,0.4408]
[1757635524185,7.4388,4459.6,4459.5,0.1199]
[1757635524484,7.4388,4459.6,4458.5,0.1199]
[1757635524690,3.4388,4459.6,4459.5,0.4408]
[1757635526094,3.2078,4459.6,4459.5,0.8427]
[1757635526593,0.231,4459.9,4459.5,0.5218]
[1757635526797,0.231,4459.9,4459.8,0.4019]
[1757635527091,3.2078,4460.3,4460.2,0.7228]
[1757635527292,3.4388,4460.3,4460.2,0.7228]
[1757635528292,0.231,4460.3,4460.2,0.7228]
[1757635528798,3.2078,4460.8,4460.7,0.6847]
[1757635528993,3.4388,4460.8,4460.7,0.6847]
[1757635529694,3.4388,4460.8,4460.7,0.2926]
[1757635529997,7.4388,4460.8,4460.3,0.2926]
[1757635530295,3.4388,4460.8,4460.0,0.1199]
[1757635530496,3.2078,4460.3,4460.0,0.3168]
[1757635530791,0.231,4460.2,4460.1,0.4895]
[1757635530990,0.231,4460.2,4460.1,0.6847]
[1757635532297,3.2078,4460.3,4460.2,0.2926]
[1757635532496,3.2078,4460.3,4460.2,0.6847]
[1757635533000,3.4388,4460.8,4460.7,0.6847]
[1757635534498,3.4388,4460.8,4460.7,0.4895]
[1757635534996,3.4388,4460.8,4460.7,0.2926]
[1757635535993,3.4388,4460.8,4460.5,0.4111]
[1757635536498,3.4388,4460.8,4460.5,0.1185]
[1757635537292,3.4388,4460.8,4460.6,0.2926]
[1757635538000,3.4388,4460.8,4460.5,0.1185]
[1757635538200,3.4388,4460.8,4460.6,0.2926]
[1757635538792,0.231,4460.7,4460.5,0.1185]
[1757635539101,0.231,4460.7,4460.6,0.2926]
[1757635540501,0.231,4460.7,4460.6,0.4895]
[1757635541004,3.2078,4460.8,4460.7,0.6847]
[1757635541203,3.4388,4460.8,4460.7,0.6847]
[1757635542402,3.4388,4460.8,4460.5,0.4111]
[1757635542592,3.4388,4460.8,4460.5,0.1185]
[1757635543005,3.4388,4460.8,4460.5,0.4111]
[1757635543398,3.4388,4460.8,4460.6,0.2926]
[1757635543902,3.4388,4460.8,4460.5,0.1185]
[1757635545197,3.4388,4460.8,4460.6,0.2926]
[1757635545500,3.4388,4460.8,4460.5,0.1185]
[1757635545702,3.4388,4460.8,4460.6,0.2926]
[1757635545900,3.4388,4460.8,4460.5,0.1185]
[1757635546709,3.4388,4460.8,4460.6,0.2926]
[1757635547205,3.4388,4460.8,4460.5,0.1185]
[1757635547607,3.4388,4460.8,4460.6,0.2926]
[1757635548604,3.4388,4460.8,4460.6,0.1969]
[1757635548805,3.4388,4460.8,4460.7,0.2926]
[1757635549007,3.95757958,4460.8,4460.7,0.2926]
[1757635549307,3.95757958,4460.8,4460.7,0.4895]
[1757635550106,3.4388,4460.8,4460.7,0.4895]
[1757635550308,3.95779577,4460.8,4460.7,0.4895]
[1757635550508,3.95779577,4460.8,4460.7,0.2926]
[1757635551104,3.95779577,4460.8,4460.7,0.4895]
[1757635551300,3.2078,4460.8,4460.7,0.6847]
[1757635551506,3.4378,4460.8,4460.7,0.6847]
[1757635554008,3.4378,4460.8,4460.7,0.2926]
[1757635554511,3.4378,4460.8,4460.7,0.4895]
[1757635555406,7.99618517,4460.8,4460.2,0.2926]
[1757635555611,3.2078,4460.3,4460.2,0.2926]
[1757635555817,3.4378,4460.3,4460.2,0.2926]
[1757635556516,3.95737619,4460.3,4460.2,0.2926]
[1757635557016,3.95737619,4460.3,4460.0,0.4125]
[1757635557213,0.51957619,4460.2,4460.0,0.1199]
[1757635557414,0.74957619,4460.1,4460.0,0.1199]
[1757635558009,0.74957619,4460.1,4460.0,0.4332]
[1757635561011,0.74957619,4460.1,4460.0,0.6313]
[1757635564313,0.74957619,4460.1,4460.0,0.8412]
[1757635566816,0.23,4460.1,4460.0,0.8412]
[1757635577223,0.23,4460.1,4460.0,0.4332]
[1757635577426,0.74921123,4460.1,4460.0,0.6313]
[1757635578031,0.74921123,4460.1,4460.0,0.8412]
[1757635578635,0.51921123,4460.1,4460.0,0.8412]
[1757635578840,0.229,4460.1,4460.0,0.8412]
[1757635579136,0.74821123,4460.1,4460.0,0.8412]
[1757635579337,0.229,4460.1,4460.0,0.8412]
[1757635581440,0.74822765,4460.1,4460.0,0.6313]
[1757635581633,0.74822765,4460.1,4460.0,0.4332]
[1757635583632,0.74822765,4460.1,4460.0,0.8412]
[1757635584028,0.51922765,4460.1,4460.0,0.8412]
[1757635584233,0.74822765,4460.1,4460.0,0.8412]
[1757635588036,0.74822765,4460.1,4460.0,0.4332]
[1757635589141,0.74822765,4460.1,4460.0,0.6452]
[1757635589643,0.74822765,4460.1,4460.0,0.4332]
[1757635591147,0.74822765,4460.1,4460.0,0.6452]
[1757635593447,0.74822765,4460.1,4459.0,0.1199]
[1757635593448,0.4092,4459.6,4459.0,0.1199]
[1757635593747,3.9344,4459.1,4459.0,0.212]
[1757635593939,4.68262765,4459.1,4459.0,0.212]
[1757635594746,0.7266,4458.6,4458.0,0.121]
[1757635595040,3.9344,4458.6,4458.5,0.212]
[1757635595343,4.69476727,4458.6,4458.5,0.212]
[1757635596532,4.69476727,4458.6,4458.5,0.5197]
[1757635597147,4.1634,4458.6,4458.5,0.5197]
[1757635598947,4.1634,4458.6,4458.5,0.212]
[1757635599649,4.1634,4458.6,4458.5,0.5197]
[1757635601345,4.1634,4458.6,4458.5,0.8389]
[1757635601743,3.2078,4458.6,4458.5,0.8389]
[1757635601950,3.4368,4458.6,4458.5,0.8389]
[1757635603253,3.6441,4458.6,4458.5,0.8389]
[1757635603444,3.4368,4458.6,4458.5,0.8389]
[1757635603849,3.4368,4458.6,4458.5,5.06319]
[1757635604050,3.2078,4458.6,4458.5,5.06319]
[1757635604256,0.229,4458.9,4458.5,4.63449]
[1757635604449,0.229,4458.9,4458.6,0.22426]
[1757635604650,0.229,4458.9,4458.4,0.22429]
[1757635604856,0.12,4458.5,4458.4,0.22429]
[1757635605055,0.4374,4458.5,4458.3,3.2078]
[1757635605259,0.12,4458.5,4458.4,0.2243]
[1757635605452,0.4374,4458.5,4458.4,0.2243]
[1757635605657,0.12,4458.5,4458.4,0.2243]
[1757635606360,0.5464,4458.9,4458.3,3.2078]
[1757635606556,0.3174,4458.8,4458.4,4.22429]
[1757635606859,0.3174,4458.8,4458.4,4.0]
[1757635607363,0.12,4459.0,4458.4,4.0]
[1757635607853,0.12,4458.5,4458.4,4.0]
[1757635608056,0.12,4458.5,4458.3,3.2078]
[1757635608553,0.3174,4458.9,4458.4,4.0]
[1757635608752,0.12,4459.0,4458.4,5.60827283]
[1757635608955,0.12,4458.5,4458.4,5.60827283]
[1757635609268,0.4374,4458.5,4458.3,5.04507283]
[1757635609563,0.4374,4458.5,4458.3,5.26937283]
[1757635609765,0.12,4458.5,4458.3,5.04507283]
[1757635610064,0.4374,4458.5,4458.3,5.04507283]
[1757635610259,0.4374,4458.5,4458.4,1.60827283]
[1757635610451,0.4374,4458.5,4458.3,3.2078]
[1757635610452,0.3273,4458.5,4458.3,3.2078]
[1757635610654,0.3174,4458.4,4458.3,3.2078]
[1757635611764,0.5247,4458.4,4458.3,3.2078]
[1757635612552,0.5247,4458.4,4457.8,3.2078]
[1757635612553,0.7266,4458.4,4457.8,3.2078]
[1757635612866,0.4374,4458.0,4457.9,0.229]
[1757635613363,0.12,4458.0,4457.8,3.2078]
[1757635613560,0.12,4457.5,4457.4,1.60827283]
[1757635613862,0.5247,4457.4,4457.3,3.2078]
[1757635616663,0.3174,4457.4,4457.3,3.2078]
[1757635618774,0.12,4457.5,4457.3,3.2078]
[1757635618775,0.4228,4457.5,4457.3,7.2078]
[1757635618969,0.3028,4457.4,4457.3,7.4368]
[1757635619266,0.12,4457.5,4457.4,0.40367]
[1757635619473,0.12,4457.5,4457.3,3.4368]
[1757635619770,0.3028,4457.4,4457.3,3.4368]
[1757635620772,0.12,4457.5,4457.3,3.4368]
[1757635621165,0.3028,4457.4,4457.3,3.4368]
[1757635621770,0.3028,4457.4,4457.3,3.2078]
[1757635621967,0.5028,4457.4,4457.3,3.4368]
[1757635622568,0.3028,4457.4,4457.3,3.4368]
[1757635623779,0.6977,4457.4,4457.3,3.4368]
[1757635624478,0.5028,4457.4,4457.3,3.4368]
[1757635625984,0.3028,4457.4,4457.3,3.4368]
[1757635626779,0.5028,4457.4,4457.3,3.4368]
[1757635627089,0.6977,4457.4,4457.3,3.4368]
[1757635627589,0.6977,4457.4,4457.3,3.2078]
[1757635629290,0.3028,4457.4,4457.3,3.4368]
[1757635631790,0.5028,4457.4,4457.3,3.4368]
[1757635631987,0.6977,4457.4,4457.3,3.4368]
[1757635634181,0.3028,4457.4,4457.3,3.4368]
[1757635635989,0.6977,4457.4,4457.3,3.2078]
[1757635639883,0.5028,4457.4,4457.3,3.2078]
[1757635640093,0.6977,4457.4,4457.3,3.2078]
[1757635640889,0.6977,4457.4,4457.2,0.229]
[1757635641495,0.6977,4456.9,4456.8,3.2078]
[1757635641691,0.6977,4456.9,4456.8,3.4368]
[1757635642699,0.3028,4456.9,4456.8,3.4368]
[1757635644297,0.3028,4456.9,4456.8,5.04507283]
[1757635644496,0.0924309,4456.9,4456.8,5.04507283]
[1757635645700,0.1239,4457.0,4456.8,3.4368]
[1757635646002,0.1239,4457.0,4456.9,1.61309301]
[1757635646505,0.4267,4457.0,4456.9,1.61309301]
[1757635646700,0.4267,4457.0,4456.8,5.04989301]
[1757635646889,0.3028,4456.9,4456.8,3.4368]
[1757635647090,0.1239,4457.0,4456.8,7.4368]
[1757635647288,0.3028,4457.4,4456.8,3.84052]
[1757635647501,0.3028,4457.4,4457.1,1.61305363]
[1757635647700,0.3028,4457.4,4457.2,1.84205363]
[1757635647890,0.2926,4457.4,4457.2,1.84205363]
[1757635648095,0.12,4457.5,4457.2,1.84205363]
[1757635648295,0.2926,4457.4,4457.2,1.84205363]
[1757635648898,0.12,4457.5,4457.2,1.84205363]
[1757635649100,0.2926,4457.4,4457.3,1.61305363]
[1757635649695,0.706,4457.4,4457.3,1.61305363]
[1757635649901,0.706,4457.4,4457.3,0.229]
[1757635650400,0.2926,4457.3,4456.9,1.61305363]
[1757635650599,0.706,4457.1,4457.0,0.229]
[1757635651901,0.8287,4457.0,4456.9,1.61305363]
[1757635652108,0.8287,4457.0,4456.9,1.84205363]
[1757635653004,0.8287,4457.0,4456.9,1.61305363]
[1757635653208,0.706,4456.9,4456.8,3.2078]
[1757635657201,0.706,4456.9,4456.6,0.229]
[1757635657509,0.1227,4456.5,4456.3,1.61305363]
[1757635657710,0.4153,4456.5,4456.4,0.229]
[1757635658311,0.6154,4456.5,4456.4,0.229]
[1757635661812,0.4153,4456.5,4456.4,0.229]
[1757635662111,0.6154,4456.5,4456.4,0.229]
[1757635662912,0.4153,4456.5,4456.4,0.229]
[1757635663315,0.6154,4456.5,4456.4,0.229]
[1757635663715,0.8287,4456.5,4456.4,0.229]
[1757635666016,0.8287,4456.5,4456.4,1.84205363]
[1757635666215,0.61832798,4456.5,4456.4,0.229]
[1757635666417,0.74102798,4456.5,4456.4,0.229]
[1757635671614,0.1227,4457.0,4456.4,0.229]
[1757635671823,0.5361,4457.0,4456.9,0.3708]
[1757635672113,0.12,4457.5,4457.4,0.4089]
[1757635672315,0.3201,4457.5,4457.4,0.9497]
[1757635672516,0.3201,4457.5,4457.4,4.1575]
[1757635673018,0.5334,4457.5,4457.4,4.1575]
[1757635673722,0.826,4457.5,4457.4,4.1575]
[1757635675018,0.826,4457.5,4457.4,3.8457]
[1757635675318,0.826,4457.5,4457.4,3.2078]
[1757635675520,0.826,4457.5,4457.4,3.4368]
[1757635675715,0.826,4457.5,4457.4,3.646]
[1757635675905,0.826,4457.5,4457.4,3.8457]
[1757635676111,0.826,4457.5,4457.4,4.1575]
[1757635677613,0.826,4457.5,4457.4,3.4368]
[1757635678014,0.826,4457.5,4457.4,44.2368]
[1757635679817,0.826,4457.5,4457.4,44.554]
[1757635680016,0.826,4457.5,4457.4,40.8]
[1757635680416,0.826,4457.5,4457.1,0.229]
[1757635680810,0.826,4457.5,4457.1,41.029]
[1757635681015,0.3112,4457.4,4457.1,41.029]
[1757635681215,0.4136,4457.2,4457.1,41.029]
[1757635681420,0.7248,4457.2,4457.1,41.029]
[1757635684225,0.7248,4457.2,4457.1,40.8]
[1757635685417,0.7248,4457.2,4457.1,41.1172]
[1757635689326,0.7248,4457.2,4457.1,40.8]
[1757635690613,0.7248,4457.2,4457.1,41.1172]
[1757635691418,0.7248,4457.2,4457.1,0.211]
[1757635691727,0.7248,4457.2,4457.1,0.735]
[1757635692022,3.9326,4457.7,4457.6,0.735]
[1757635693332,3.9326,4457.7,4457.6,0.4178]
[1757635693919,0.7248,4457.7,4457.6,0.4178]
[1757635694120,0.7248,4457.7,4457.6,0.735]
[1757635694721,0.7248,4457.7,4457.6,0.4178]
[1757635696525,0.1235,4457.5,4457.4,0.211]
[1757635696827,0.4136,4457.1,4457.0,0.6468]
[1757635697029,0.4136,4457.1,4457.0,0.964]
[1757635697224,0.7248,4457.1,4457.0,0.964]
[1757635702727,0.1235,4457.5,4457.0,0.964]
[1757635702728,0.1235,4457.5,4457.0,0.6468]
[1757635702933,0.3112,4457.4,4457.3,0.4178]
[1757635703129,3.2078,4457.7,4457.3,0.735]
[1757635703334,0.3112,4457.6,4457.5,0.4178]
[1757635703537,0.3112,4457.6,4457.5,0.735]
[1757635704824,0.5093,4457.6,4457.5,0.735]
[1757635705936,0.1235,4457.5,4457.2,0.3172]
[1757635706136,0.5093,4457.3,4457.2,0.735]
[1757635707737,0.12,4458.0,4457.3,0.2992]
[1757635707938,0.6998,4457.9,4457.8,0.1962]
[1757635708738,0.6998,4457.9,4457.5,0.2992]
[1757635708943,0.5304,4457.5,4457.4,3.9117]
[1757635709239,0.827,4457.5,4457.4,3.9117]
[1757635710732,0.827,4457.5,4457.4,0.7039]
[1757635711840,0.827,4457.5,4457.4,0.1962]
[1757635712038,0.827,4457.5,4457.2,0.229]